Cogmind - Beta 15 @@@ ROGUE MODE // 2025.08.09 @ 23:15:48 Player: Zoe Result: Destroyed by Y-64 Sentinel with Wave Gun Performance ------------- Evolutions (5) 2500 Regions Visited (11) 2200 Robots Destroyed (35) 175 Value Destroyed (811) 811 Prototype IDs (0) 0 Alien Tech Used (0) 0 Bonus (500) 500 TOTAL SCORE: 6186 Bonus ------- Entered DSFs 500 Cogmind --------- Core Integrity 0/1000 Matter 56/300 Energy 99/100 System Corruption 3% Temperature Cool (9) Movement Core (50) Location -5/Factory Parts ------- > --- POWER (1) -------- (None) > --- PROPULSION (4) --- (None) > --- UTILITY (8) ------ (None) > --- WEAPON (4) ------- (None) > --- INVENTORY (5) ---- Medium Storage Unit Peak State ------------ > --- POWER ------------ Nuclear Core > --- PROPULSION ------- Light Treads Light Treads Heavy Treads > --- UTILITY ---------- IFF Parser Reaction Control System Improved Heavy Armor Plating Damper Plating > --- WEAPON ----------- Proton Cannon Long-range Missile Launcher > --- INVENTORY -------- (None) [Rating: 69] Favorites ----------- Power Light Nuclear Core Engine Ion Engine Power Core Light Nuclear Core Propulsion Light Treads Treads Light Treads Wheel Compact Wheel Utility Signal Interpreter Device Reaction Control System Storage Medium Storage Unit Processor Signal Interpreter Protection Layered Heavy Armor Plating Weapon Light Assault Rifle Energy Gun Medium Laser Energy Cannon Proton Cannon Ballistic Gun Light Assault Rifle Launcher Rocket Launcher Special Weapon Plasma Cutter Slashing Weapon Makeshift Axe Build | -11 -10 -10 -10 -9 -8 -7 -6 -6 -6 -6 -5 ------- Run | Yrd Mat Min Exi Min Mat Fac Fac Was Fac DSF Fac Slots Evolved 10 | . . . . . 4 2 2 . . . 2 Power . | . . . . . . . . . . . . Propulsion 2 | . . . . . . . 2 . . . . Utility 6 | . . . . . 4 2 . . . . . Weapon 2 | . . . . . . . . . . . 2 Parts Attached 53 | 8 1 7 5 . 8 1 9 4 . 1 9 Power 7 | 1 . 1 1 . 1 . 1 . . 1 1 Engine 3 | 1 . . 1 . . . . . . 1 . Core 4 | . . 1 . . 1 . 1 . . . 1 Reactor . | . . . . . . . . . . . . Propulsion 10 | 2 . 2 1 . . . 2 1 . . 2 Treads 8 | 2 . 2 1 . . . 2 1 . . . Leg . | . . . . . . . . . . . . Wheel 2 | . . . . . . . . . . . 2 Hover . | . . . . . . . . . . . . Flight . | . . . . . . . . . . . . Utility 23 | 2 . 1 1 . 6 1 5 1 . . 6 Device 9 | 1 . . . . 5 . 3 . . . . Storage 2 | 1 . . 1 . . . . . . . . Processor 3 | . . 1 . . 1 . 1 . . . . Hackware . | . . . . . . . . . . . . Protection 9 | . . . . . . 1 1 1 . . 6 Artifact . | . . . . . . . . . . . . Weapon 13 | 3 1 3 2 . 1 . 1 2 . . . Energy Gun 2 | 2 . . . . . . . . . . . Energy Cannon 1 | . . . . . . . . 1 . . . Ballistic Gun 4 | 1 . 2 . . 1 . . . . . . Ballistic Cannon . | . . . . . . . . . . . . Launcher 2 | . . . 1 . . . . 1 . . . Special Weapon 2 | . 1 . . . . . 1 . . . . Impact Weapon . | . . . . . . . . . . . . Slashing Weapon 2 | . . 1 1 . . . . . . . . Piercing Weapon . | . . . . . . . . . . . . Special Melee Weapon . | . . . . . . . . . . . . Unidentified Prototypes . | . . . . . . . . . . . . Parts Lost 23 | . 1 5 . . . 9 . 4 . 1 3 Power 3 | . . 1 . . . 1 . . . 1 . Propulsion 7 | . . 2 . . . 2 . 1 . . 2 Utility 7 | . . 1 . . . 4 . 1 . . 1 Weapon 6 | . 1 1 . . . 2 . 2 . . . Highest Loss Streak 8 | . 1 4 . . . 8 . 2 . 1 2 To Critical Strikes . | . . . . . . . . . . . . Average Backups 5 | 4 7 5 7 9 6 6 . . . . 2 Power 1 | . 1 1 1 2 1 1 . . . . . Propulsion . | 1 1 . 1 2 2 2 . . . . . Utility 1 | . 2 2 2 2 . . . . . . 2 Weapon 2 | 1 2 2 3 3 2 1 . . . . . Tool/Special . | . . . . . . . . . . . . Unused Backups 7 | . 2 1 . . 1 2 . . . . 1 Power 2 | . . . . . 1 1 . . . . . Propulsion 2 | . 2 . . . . . . . . . . Utility 1 | . . . . . . . . . . . 1 Weapon 2 | . . 1 . . . 1 . . . . . Tool/Special . | . . . . . . . . . . . . Average Slot Usage (%) 82 | . 99 95 99 100 97 71 51 45 . . 12 Engine 1 | . 14 1 . . . . . . . . . Core 9 | . . 11 14 14 9 5 6 4 . . . Treads 20 | . 28 26 28 28 18 9 12 10 . . . Device 8 | . 14 1 . . 34 23 12 11 . . . Storage 9 | . 14 14 14 14 9 6 . . . . . Processor 8 | . . 12 14 14 9 6 1 2 . . . Protection 1 | . . . . . . 5 4 6 . . 9 Energy Gun 1 | . 13 6 . . . . . . . . . Ballistic Gun 12 | . 13 19 18 14 9 5 . . . . . Slashing Weapon 4 | . . 1 8 14 8 6 . . . . . Peak Build Rating 69 | 9 9 9 13 13 27 30 34 69 . 5 51 Average Rating 15 | 7 8 8 10 13 24 23 25 32 . . 22 On Entrance 9 | . 9 8 9 13 13 27 . 34 . . . Naked Turns 372 | . . . . . . 57 . 109 3 23 180 Heaviest Build 85 | 14 14 15 19 19 28 36 30 85 . 9 80 Greatest Support 110 | 40 40 40 40 40 40 40 40 110 3 3 32 Greatest Overweight (x) 26 | . . 2 . . . 7 . 1 . 2 26 Average Overweight (x) . | . . . . . . . . . . . . Largest Inventory Capacity 10 | 8 8 8 10 10 10 10 5 5 5 5 5 Average Capacity 8 | 7 8 8 9 10 10 9 5 5 5 5 5 Most Carried 10 | 6 8 8 10 9 9 8 4 5 . 1 5 Average Carried 5 | 4 7 5 7 9 6 6 . . . . 3 Final Capacity 10 | 8 8 8 10 10 10 5 5 5 5 5 5 Final Carried 9 | 6 8 6 9 9 7 5 2 . . 1 1 Class Distribution -------------------- 81% | Mutant 14% | Assassin 3% | Skirmisher Dominant Class ---------------- Mutant | -10/Materials Mutant | -10/Mines Mutant | -10/Exiles Mutant | -9/Mines Assassin | -8/Materials Assassin | -7/Factory Mutant | -6/Factory Mutant | -6/Waste Mutant | -6/Factory Mutant | -6/DSF Mutant | -5/Factory Resources | -11 -10 -10 -10 -9 -8 -7 -6 -6 -6 -6 -5 ----------- Run | Yrd Mat Min Exi Min Mat Fac Fac Was Fac DSF Fac Matter Collected 1020 | 295 20 109 323 . 94 5 . 134 . 10 30 Remotely . | . . . . . . . . . . . . Salvage Created 1784 | 124 48 225 385 . 205 206 . 561 . . 30 Parts 98 | 20 10 13 18 . 17 12 . 5 . . 3 Haulers Intercepted . | . . . . . . . . . . . . Recyclers Shooed . | . . . . . . . . . . . . Parts Field Recycled . | . . . . . . . . . . . . Retrieved Matter . | . . . . . . . . . . . . Parts Self-Destructed . | . . . . . . . . . . . . Prevented . | . . . . . . . . . . . . Kills | -11 -10 -10 -10 -9 -8 -7 -6 -6 -6 -6 -5 ------- Run | Yrd Mat Min Exi Min Mat Fac Fac Was Fac DSF Fac Combat Hostiles Destroyed 23 | . 1 5 2 . 4 7 . 3 . . 1 Melee 14 | . . 2 . . 4 7 . . . . 1 Guns 6 | . 1 3 2 . . . . . . . . AOE 3 | . . . . . . . . 3 . . . Classes Destroyed 9 | 2 3 1 1 . 1 . . 1 . . . Worker 1 | . 1 . . . . . . . . . . Tunneler 5 | 5 . . . . . . . . . . . Recycler 3 | 1 . 1 . . 1 . . . . . . Operator 1 | . 1 . . . . . . . . . . Watcher 2 | . . . . . 2 . . . . . . Swarmer 14 | . 1 3 . . 3 6 . . . . 1 Grunt 4 | . . 2 1 . . 1 . . . . . Hunter 2 | . . . 1 . 1 . . . . . . Compactor 3 | . . . . . . . . 3 . . . Best Kill Streak 4 | 4 2 3 1 . 4 3 . 2 . . 1 Combat Bots Only 3 | . 1 3 1 . 3 3 . 2 . . 1 Max Kills in Single Turn 1 | 1 1 1 1 . 1 1 . 1 . . 1 Gunslinging . | . . . . . . . . . . . . Exploded 1 | . . . . . . . . 1 . . . Melee 1 | . . 1 . . 1 1 . . . . 1 Uniques/NPCs Destroyed . | . . . . . . . . . . . . Combat | -11 -10 -10 -10 -9 -8 -7 -6 -6 -6 -6 -5 -------- Run | Yrd Mat Min Exi Min Mat Fac Fac Was Fac DSF Fac Hostile Shots Fired 549 | . 32 55 . . 28 124 . 13 . 12 285 Missed 158 | . 5 12 . . 3 35 . 2 . 4 97 Hits 391 | . 27 43 . . 25 89 . 11 . 8 188 Melee 11 | . . . . . . . . 11 . . . Projectile 380 | . 27 43 . . 25 89 . . . 8 188 Critical Strikes 22 | . . 4 . . . 1 . 3 . 1 13 Damage Taken 7319 | . 245 560 . . 277 1337 . 1067 . 194 3639 Core 1950 | . 34 141 . . 56 480 . 92 . 134 1013 Absorbed by Shields . | . . . . . . . . . . . . Regen/Repaired (Parts) 35 | . . . . . 35 . . . . . . Core Remaining (%) 64 | 100 . . . 30 89 31 . . . 73 . Volleys Fired 181 | 15 10 15 60 . 4 . 61 16 . . . Largest 2 | 2 2 2 1 . 1 . 1 2 . . . Hottest 118 | 70 100 70 33 . 20 . 20 118 . . . Shots Fired 218 | 30 19 18 61 . 4 . 61 25 . . . Gun 127 | 30 18 18 57 . 4 . . . . . . Cannon 10 | . . . . . . . . 10 . . . Launcher 19 | . . . 4 . . . . 15 . . . Special 62 | . 1 . . . . . 61 . . . . Kinetic 100 | 15 9 15 57 . 4 . . . . . . Thermal 80 | 15 1 3 . . . . 61 . . . . Explosive 19 | . . . 4 . . . . 15 . . . Electromagnetic 19 | . 9 . . . . . . 10 . . . Robot Hit Streak 12 | 4 5 4 12 . . . . 9 . . . Robot Miss Streak 4 | 2 2 3 2 . . . . 4 . . . Penetration Max . | . . . . . . . . . . . . Secondary Targets . | . . . . . . . . . . . . Shots Hit Robots 145 | 16 10 23 52 . 11 17 . 16 . . . Core Hits 69 | 9 5 7 24 . 5 8 . 8 . . 3 Critical Kills . | . . . . . . . . . . . . Critical Parts Destroyed 1 | . . 1 . . . . . . . . . Critical Strikes 4 | 1 . 2 . . . 1 . . . . . Burn 2 | 1 . 1 . . . . . . . . . Destroy 1 | . . 1 . . . . . . . . . Sever 1 | . . . . . . 1 . . . . . Melee Attacks 84 | . . 19 13 . 22 30 . . . . . Impact . | . . . . . . . . . . . . Slashing 84 | . . 19 13 . 22 30 . . . . . Piercing . | . . . . . . . . . . . . Sneak Attacks 5 | . . 1 . . 3 1 . . . . . Combat Hostiles . | . . . . . . . . . . . . Follow-up Attacks . | . . . . . . . . . . . . Damage Inflicted 5120 | 174 134 385 883 . 525 654 . 2280 . . 85 Guns 694 | 174 134 93 293 . . . . . . . . Cannons 16 | . . . . . . . . 16 . . . Explosions 2428 | . . . 164 . . . . 2264 . . . Melee 1888 | . . 292 426 . 525 645 . . . . . Ramming 94 | . . . . . . 9 . . . . 85 Kinetic 480 | 62 58 67 293 . . . . . . . . Thermal 138 | 112 . 26 . . . . . . . . . Explosive 2428 | . . . 164 . . . . 2264 . . . Electromagnetic 92 | . 76 . . . . . . 16 . . . Impact . | . . . . . . . . . . . . Slashing 1888 | . . 292 426 . 525 645 . . . . . Piercing . | . . . . . . . . . . . . Highest Corruption 24 | . 2 2 2 2 . 4 . 24 24 24 3 Average Corruption 3 | . 2 2 2 2 . 3 . 12 24 24 1 Corruption Purged . | . . . . . . . . . . . . Corruption Blocked . | . . . . . . . . . . . . Effects 79 | . 1 14 36 1 . 2 . 16 . 1 8 Message Errors 20 | . 1 1 8 . . 1 . 8 . . 1 Matter Fused 20 | . . 6 10 . . 1 . 1 . . 2 Heat Flow Errors 7 | . . 2 1 1 . . . 1 . . 2 Energy Discharges 14 | . . 1 9 . . . . 2 . 1 1 Parts Fused 2 | . . . 1 . . . . . . . 1 Data Loss (minor) 7 | . . 2 2 . . . . 2 . . 1 Data Loss (major) 2 | . . 1 1 . . . . . . . . Misfires 2 | . . . 2 . . . . . . . . Alerts 2 | . . 1 1 . . . . . . . . Weapon Failures 3 | . . . 1 . . . . 2 . . . Overload Shots . | . . . . . . . . . . . . Overflow Damage 199 | . . 18 . . 68 91 . 22 . . . Projectiles . | . . . . . . . . . . . . Explosions 22 | . . . . . . . . 22 . . . Melee 177 | . . 18 . . 68 91 . . . . . Knockbacks 1 | . . . . . . 1 . . . . . Impact 1 | . . . . . . 1 . . . . . Kinetic . | . . . . . . . . . . . . Secondary . | . . . . . . . . . . . . Self-Inflicted Damage 614 | . . . . . . 4 . 569 . . 41 Shots 11 | . . . . . . . . 11 . . . Rammed 15 | . . . . . . 2 . . . . 13 Targets Rammed 15 | . . . . . . 2 . . . . 13 Kicked . | . . . . . . . . . . . . Crushed . | . . . . . . . . . . . . Highest Temperature 624 | 90 44 214 182 271 . . . 566 . . 624 Average Temperature 115 | 29 16 49 18 136 . . . 300 . . 123 Received Heat Transfer 2102 | . 45 333 . . . 177 . . . 6 1541 Effects 11 | . . . . 1 . . . 10 . . . Shutdowns 2 | . . . . . . . . 2 . . . Energy Bleed 2 | . . . . 1 . . . 1 . . . Matter Decay 1 | . . . . . . . . 1 . . . Short Circuit 1 | . . . . . . . . 1 . . . Damage (minor) 3 | . . . . . . . . 3 . . . Damage (major) 2 | . . . . . . . . 2 . . . Siege Activations . | . . . . . . . . . . . . Martial Activations . | . . . . . . . . . . . . Shielding Activations . | . . . . . . . . . . . . Robots Disrupted . | . . . . . . . . . . . . Combat Hostiles . | . . . . . . . . . . . . Robots Corrupted . | . . . . . . . . . . . . Combat Hostiles . | . . . . . . . . . . . . Parts Fried . | . . . . . . . . . . . . Impact Corruptions . | . . . . . . . . . . . . Robots Melted . | . . . . . . . . . . . . Combat Hostiles . | . . . . . . . . . . . . Parts Melted 2 | 1 . 1 . . . . . . . . . Heat Transferred 555 | 407 . 148 . . . . . . . . . Parts Sabotaged . | . . . . . . . . . . . . Parts Stolen . | . . . . . . . . . . . . Parts Stripped . | . . . . . . . . . . . . Power Chain Reactions . | . . . . . . . . . . . . Alert | -11 -10 -10 -10 -9 -8 -7 -6 -6 -6 -6 -5 ------- Run | Yrd Mat Min Exi Min Mat Fac Fac Was Fac DSF Fac Maximum Alert Level . | . . . . . . . . . . . . Low Security (%) 100 | 100 100 100 . 100 100 100 100 100 100 100 100 Level 1 . | . . . . . . . . . . . . Level 2 . | . . . . . . . . . . . . Level 3 . | . . . . . . . . . . . . Level 4 . | . . . . . . . . . . . . Level 5 . | . . . . . . . . . . . . High Security . | . . . . . . . . . . . . Max Security . | . . . . . . . . . . . . Peak Influence 190 | 10 40 62 . . 65 110 21 21 . 3 190 Initial 21 | . . 7 . . . 2 21 . . 3 . Average 14 | 1 3 6 . . 13 35 2 2 . 1 53 Influence Increases 1054 | 30 60 125 50 . 151 274 15 70 5 . 274 Destroy 0b10 Robot/C 400 | . 20 100 40 . 80 140 . . . . 20 Destroy 0b10 Robot/NC 70 | 30 10 5 10 . 15 . . . . . . Destroy Leader 74 | . . 20 . . 24 30 . . . . . Successful Hack 49 | . . . . . 16 14 . . 5 . 14 Disable Machine 60 | . 30 . . . 15 . 15 . . . . Destroy Structure 56 | . . . . . 1 . . 55 . . . Partial Spotted 30 | . . . . . . . . 15 . . 15 Lose Combat Pursuer 315 | . . . . . . 90 . . . . 225 Influence Decreases 900 | 30 40 145 48 2 145 236 59 70 . 5 120 Entered New Map 44 | . . 13 . 2 . 4 23 . . 2 . Time Decay 713 | 30 30 122 48 . 145 142 36 50 . . 110 Lost Part 143 | . 10 10 . . . 90 . 20 . 3 10 Squads Dispatched 8 | . 1 . . . 1 4 . . . . 2 Investigation 3 | . . . . . 1 1 . . . . 1 Extermination 2 | . . . . . . 1 . . . . 1 Reinforcement 3 | . 1 . . . . 2 . . . . . Assault . | . . . . . . . . . . . . Garrison . | . . . . . . . . . . . . Intercept . | . . . . . . . . . . . . Searches Triggered . | . . . . . . . . . . . . Construction Impeded . | . . . . . . . . . . . . Haulers Reinforced 1 | . . . . . . 1 . . . . . Active Scanning Responses . | . . . . . . . . . . . . Cargo Convoy Interrupts . | . . . . . . . . . . . . Stealth | -11 -10 -10 -10 -9 -8 -7 -6 -6 -6 -6 -5 --------- Run | Yrd Mat Min Exi Min Mat Fac Fac Was Fac DSF Fac Distress Signals 2 | . 1 . . . . 1 . . . . . Communications Jammed . | . . . . . . . . . . . . Distress Signals . | . . . . . . . . . . . . Times Spotted 76 | . 7 5 . . 5 20 . 6 . 1 32 Peak Tracking Total 13 | . 6 3 . . 3 7 . 3 . 2 13 Tactical Retreats 11 | . . . . . . 3 . 1 . . 7 Traps | -11 -10 -10 -10 -9 -8 -7 -6 -6 -6 -6 -5 ------- Run | Yrd Mat Min Exi Min Mat Fac Fac Was Fac DSF Fac Traps Triggered 4 | . 1 . . . . . 1 . . . 2 Indirectly . | . . . . . . . . . . . . Trap Hack Attempts . | . . . . . . . . . . . . Triggered . | . . . . . . . . . . . . Disarmed . | . . . . . . . . . . . . Reprogrammed . | . . . . . . . . . . . . Reused . | . . . . . . . . . . . . Traps Extracted . | . . . . . . . . . . . . Installed . | . . . . . . . . . . . . Triggered . | . . . . . . . . . . . . Machines | -11 -10 -10 -10 -9 -8 -7 -6 -6 -6 -6 -5 ---------- Run | Yrd Mat Min Exi Min Mat Fac Fac Was Fac DSF Fac Machines Disabled 5 | . 2 . 1 . 1 . 1 . . . . Max in Single Turn 1 | . 1 . 1 . 1 . 1 . . . . Garrison Access 1 | . . . . . . 1 . . . . . Machines Repaired . | . . . . . . . . . . . . Machines Dismantled 1 | . . . . . . . 1 . . . . Machines Sabotaged . | . . . . . . . . . . . . Overloaded Fab Kills . | . . . . . . . . . . . . Hacking | -11 -10 -10 -10 -9 -8 -7 -6 -6 -6 -6 -5 --------- Run | Yrd Mat Min Exi Min Mat Fac Fac Was Fac DSF Fac Machines Accessed 11 | . . . 4 . 3 2 . . 1 . 1 Terminals 4 | . . . . . 1 1 . . 1 . 1 Fabricators . | . . . . . . . . . . . . Repair Stations 1 | . . . . . 1 . . . . . . Recycling Units 1 | . . . . . 1 . . . . . . Scanalyzers . | . . . . . . . . . . . . Garrison Access 1 | . . . . . . 1 . . . . . Total Hacks 70 | . . . 49 . 11 5 . . 1 . 4 Successful 61 | . . . 49 . 8 2 . . 1 . 1 Failed 9 | . . . . . 3 3 . . . . 3 Catastrophic . | . . . . . . . . . . . . Database Lockouts . | . . . . . . . . . . . . Manual 17 | . . 1 . . 9 3 . . . . 4 Terminals 13 | . . . . . 5 3 . . 1 . 4 Fabricators . | . . . . . . . . . . . . Repair Stations 2 | . . . . . 2 . . . . . . Recycling Units 4 | . . . . . 4 . . . . . . Scanalyzers . | . . . . . . . . . . . . Garrison Access 2 | . . . . . . 2 . . . . . Terminal Hacks 50 | . . . 49 . . . . . 1 . . Record 49 | . . . 49 . . . . . . . . Open DSF 1 | . . . . . . . . . 1 . . Fabricator Hacks . | . . . . . . . . . . . . Repair Station Hacks 2 | . . . . . 2 . . . . . . Scan Component 1 | . . . . . 1 . . . . . . Repair 1 | . . . . . 1 . . . . . . Recycling Unit Hacks . | . . . . . . . . . . . . Scanalyzer . | . . . . . . . . . . . . Garrison Access Hacks 1 | . . . . . . 1 . . . . . Seal Access 1 | . . . . . . 1 . . . . . Unauthorized Hacks 8 | . . . . . 6 1 . . . . 1 Terminals 5 | . . . . . 3 1 . . . . 1 Track 1 | . . . . . 1 . . . . . . Botnet 3 | . . . . . 1 1 . . . . 1 Operators 1 | . . . . . 1 . . . . . . Fabricators . | . . . . . . . . . . . . Repair Stations . | . . . . . . . . . . . . Recycling Units 3 | . . . . . 3 . . . . . . Monitor 1 | . . . . . 1 . . . . . . Reject 1 | . . . . . 1 . . . . . . Mask 1 | . . . . . 1 . . . . . . Scanalyzers . | . . . . . . . . . . . . Garrison Access . | . . . . . . . . . . . . Data Cores Recovered . | . . . . . . . . . . . . Used . | . . . . . . . . . . . . Hacking Detections 7 | . . . . . 3 2 . . 1 . 1 Full Trace Events 3 | . . . . . 1 1 . . . . 1 Feedback Events 1 | . . . . . . . . . . . 1 Corruption 1 | . . . . . . . . . . . 1 Feedback Blocked . | . . . . . . . . . . . . Robot Schematics Acquired . | . . . . . . . . . . . . Robots Built . | . . . . . . . . . . . . Authchips . | . . . . . . . . . . . . Time . | . . . . . . . . . . . . Total Robot Build Rating . | . . . . . . . . . . . . Part Schematics Acquired . | . . . . . . . . . . . . Parts Built . | . . . . . . . . . . . . Authchips . | . . . . . . . . . . . . Time . | . . . . . . . . . . . . Total Part Build Rating . | . . . . . . . . . . . . Parts Repaired 1 | . . . . . 1 . . . . . . Time 44 | . . . . . 44 . . . . . . Parts Recycled . | . . . . . . . . . . . . Recycled Matter . | . . . . . . . . . . . . Retrieved Matter . | . . . . . . . . . . . . Retrieved Components . | . . . . . . . . . . . . Parts Scanalyzed . | . . . . . . . . . . . . Part Schematics Acquired . | . . . . . . . . . . . . Parts Damaged . | . . . . . . . . . . . . Bothacking | -11 -10 -10 -10 -9 -8 -7 -6 -6 -6 -6 -5 ------------ Run | Yrd Mat Min Exi Min Mat Fac Fac Was Fac DSF Fac Used RIF Installer . | . . . . . . . . . . . . Robots Hacked . | . . . . . . . . . . . . Non-combat . | . . . . . . . . . . . . Combat . | . . . . . . . . . . . . Robot Hacks Applied . | . . . . . . . . . . . . Relay Couplers Released . | . . . . . . . . . . . . Fabnet Peak Effective % . | . . . . . . . . . . . . Robots Rewired . | . . . . . . . . . . . . Allies Hacked . | . . . . . . . . . . . . Hacks Repelled . | . . . . . . . . . . . . Allies | -11 -10 -10 -10 -9 -8 -7 -6 -6 -6 -6 -5 -------- Run | Yrd Mat Min Exi Min Mat Fac Fac Was Fac DSF Fac Total Allies 1 | . . 1 . . . . . . . . . Largest Group 1 | . . 1 1 . . . . . . . . Highest-Rated Group 31 | . . 31 31 . . . . . . . . Highest-Rated Ally 31 | . . 31 31 . . . . . . . . Total Orders . | . . . . . . . . . . . . Ally Attacks . | . . . . . . . . . . . . Total Damage . | . . . . . . . . . . . . Kills . | . . . . . . . . . . . . Allies Corrupted . | . . . . . . . . . . . . Allies Melted 1 | . . . . . . . . . . . 1 Intel | -11 -10 -10 -10 -9 -8 -7 -6 -6 -6 -6 -5 ------- Run | Yrd Mat Min Exi Min Mat Fac Fac Was Fac DSF Fac Active Infowar (turns) 2188 | 128 329 61 . . 567 430 431 242 . . . Sensors 1119 | . . . . . 566 352 104 97 . . . IFF 673 | . . . . . . . 431 242 . . . Terrain 518 | 128 329 61 . . . . . . . . . Traps 963 | . . . . . 533 430 . . . . . Seismic 936 | . . . . . 567 369 . . . . . Robot Analysis Total . | . . . . . . . . . . . . Derelict Logs Recovered 4 | . . 3 . 1 . . . . . . . Drone Launches . | . . . . . . . . . . . . Drone Recoveries . | . . . . . . . . . . . . Exploration | -11 -10 -10 -10 -9 -8 -7 -6 -6 -6 -6 -5 ------------- Run | Yrd Mat Min Exi Min Mat Fac Fac Was Fac DSF Fac Turns Passed 5958 | 180 329 978 1986 167 569 487 461 351 3 25 422 Spaces Moved 3482 | 84 181 534 1107 105 257 293 116 313 6 41 445 Core 724 | 15 . 3 . . . 125 . 197 6 41 337 Treads 2650 | 69 181 531 1107 105 257 168 116 116 . . . Legs . | . . . . . . . . . . . . Wheels 108 | . . . . . . . . . . . 108 Hover . | . . . . . . . . . . . . Flight . | . . . . . . . . . . . . Fastest Speed 50 | 50 160 150 160 160 160 50 160 50 50 50 50 Average Speed 140 | 140 160 159 160 160 160 138 160 92 50 52 86 Slowest Speed 1350 | 160 160 160 160 160 160 400 160 240 50 150 1350 Overloaded Moves . | . . . . . . . . . . . . Propulsion Burnouts . | . . . . . . . . . . . . Robots Hopped . | . . . . . . . . . . . . Potential Cave-ins . | . . . . . . . . . . . . Cave-ins Triggered . | . . . . . . . . . . . . Exploration Rate (%) 37 | 5 29 82 93 31 25 10 4 100 1 44 24 Regions Visited 11 Branch Regions 3 Pre-discovered Areas 1 | . . . 1 . . . . . . . . Known Exits Taken 5 | . . 1 1 1 1 . . . 1 . . Unknown Exits Taken 3 | 1 1 . . . . 1 . . . . . Scrap Searched 3 | . . 3 . . . . . . . . . Spaces Dug 8 | . . . 7 . 1 . . . . . . Terrain Destroyed 137 | . . . 26 . 1 . . 110 . . . Melee 1 | . . . . . 1 . . . . . . Projectile . | . . . . . . . . . . . . AOE 136 | . . . 26 . . . . 110 . . . Terrain Rammed . | . . . . . . . . . . . . Walls Destroyed . | . . . . . . . . . . . . Machines Disabled . | . . . . . . . . . . . . Actions | -11 -10 -10 -10 -9 -8 -7 -6 -6 -6 -6 -5 --------- Run | Yrd Mat Min Exi Min Mat Fac Fac Was Fac DSF Fac Total 4145 | 119 201 603 1246 104 391 342 263 346 5 43 482 Wait 250 | . . 20 49 . 84 14 65 11 . . 7 Move 3472 | 83 180 533 1106 104 256 292 116 312 5 40 445 Hop . | . . . . . . . . . . . . Pick Up 54 | 13 5 4 6 . 10 2 7 2 . 2 3 Fast Attach 6 | . . . . . . . . . . . 6 Attach 39 | 7 . 6 1 . 5 1 10 4 . 1 4 Detach 1 | . . . . . . . . . . . 1 Swap 21 | 1 3 5 8 . 4 . . . . . . Drop 18 | . 3 1 3 . 6 1 . 1 . . 3 Fire 181 | 15 10 15 60 . 4 . 61 16 . . . Melee 84 | . . 19 13 . 22 30 . . . . . Ram 15 | . . . . . . 2 . . . . 13 Kick . | . . . . . . . . . . . . Crush . | . . . . . . . . . . . . Escape Stasis . | . . . . . . . . . . . . Rewire . | . . . . . . . . . . . . Trap . | . . . . . . . . . . . . Miscellaneous 4 | . . . . . . . 4 . . . . Route ------- -11/Scrapyard -10/Materials -10/Mines (discovered 3 exits: *Mat / *Exi / *Sub) -10/Exiles -9/Mines -8/Materials (discovered 2 exits: *Fac x2) -7/Factory (discovered 3 exits: [*Fac] / Sto x2) -6/Factory -6/Waste -6/Factory -6/DSF -5/Factory History --------- Turn | Location | Event 3 | -11/Scrapyard | Discovered new exit (range 15) 181 | -11/Scrapyard | Entered Materials 315 | -10/Materials | Build established: Mutant 479 | -10/Materials | Discovered new exit (range 12) 510 | -10/Materials | Entered Mines 514 | -10/Mines | Learned location of 1 exit from Materials 600 | -10/Mines | Core integrity fell below 50% 628 | -10/Mines | Lost 4 parts (1p2n1u) 998 | -10/Mines | Escorted by a lone wolf Derelict 1218 | -10/Mines | Discovered new exit (range 9) 1232 | -10/Mines | Identified exit to Materials 1260 | -10/Mines | Discovered new exit (range 3) 1262 | -10/Mines | Identified exit to Subcaves 1316 | -10/Mines | Deemed a non-threat by the Exiles lab entrance 1316 | -10/Mines | Discovered new exit (range 5) 1321 | -10/Mines | Identified exit to Exiles 1355 | -10/Mines | Received a Rocket Launcher from a helpful Derelict 1488 | -10/Mines | Entered Exiles 1488 | -10/Exiles | Found Exiles lab destroyed 1488 | -10/Exiles | Accompanied by 1 ally 2590 | -10/Exiles | Learned location of Zion (-6) 3018 | -10/Exiles | Discovered new exit (range 14) 3036 | -10/Exiles | Identified exit to Mines 3474 | -10/Exiles | Entered Mines 3585 | -9/Mines | Learned Materials stockpile data 3599 | -9/Mines | Discovered new exit (range 15) 3620 | -9/Mines | Identified exit to Materials 3641 | -9/Mines | Entered Materials 3641 | -8/Materials | Evolved 4 slots: Utility x4 3642 | -8/Materials | Identified exit to Factory 3930 | -8/Materials | Repaired Mak. Axe 4207 | -8/Materials | Discovered exit to Factory (range 3) 4210 | -8/Materials | Entered Factory 4210 | -7/Factory | Evolved 2 slots: Utility x2 4211 | -7/Factory | Identified exit to Storage 4231 | -7/Factory | Build established: Assassin 4640 | -7/Factory | Released all parts (3) 4663 | -7/Factory | Lost 8 parts (1p1n4u2w) 4663 | -7/Factory | Core integrity fell below 50% 4694 | -7/Factory | Discovered new exit (range 8) 4697 | -7/Factory | Entered another Factory area 4697 | -6/Factory | Evolved 2 slots: Propulsion x2 4854 | -6/Factory | Build established: Mutant 5158 | -6/Factory | Sucked down chute 5158 | -6/Factory | Entered Waste 5173 | -6/Waste | EMP discharged 5205 | -6/Waste | Spotted C-40 Crusher 5235 | -6/Waste | Spotted C-40 Crusher 5255 | -6/Waste | Crushed by Compactor (0 parts destroyed, 1 dropped) 5273 | -6/Waste | EMP discharged 5273 | -6/Waste | System corruption reached 10% 5279 | -6/Waste | Destroyed C-40 Crusher 5289 | -6/Waste | Destroyed C-40 Crusher 5300 | -6/Waste | Found Damper Plating 5330 | -6/Waste | Spotted C-40 Crusher 5333 | -6/Waste | Spotted C-40 Crusher 5363 | -6/Waste | Destroyed C-40 Crusher 5373 | -6/Waste | EMP discharged 5400 | -6/Waste | Released all parts (8) 5431 | -6/Waste | Spotted C-40 Crusher 5471 | -6/Waste | Spotted C-40 Crusher 5473 | -6/Waste | EMP discharged 5495 | -6/Waste | Discovered new exit (range 13) 5509 | -6/Waste | Entered Factory 5512 | -6/Factory | Identified exit to DSF 5512 | -6/Factory | Entered DSF 5528 | -6/DSF | Discovered new exit (range 12) 5537 | -6/DSF | Entered Factory 5537 | -5/Factory | Evolved 2 slots: Weapon x2 5737 | -5/Factory | Noticed a derelict Sapper rigging charges 5796 | -5/Factory | Released all parts (3) 5940 | -5/Factory | Core integrity fell below 50% 5949 | -5/Factory | Core integrity fell below 20% 5959 | -5/Factory | Destroyed by Y-64 Sentinel with Wave Gun Last Messages --------------- 05896_ Acquired 30 matter. 05896_ Acquired Lgt. Nuclear Core. 05896_ R-10 Processor collects VTOL Module. 05896_ K-01 Serf cleans the Repair Station. 05897_ K-01 Serf collects debris. 05899_ System corrupted: Heat flow error (+226). 05900_ Dropped Lgt. Nuclear Core. 05900_ R-10 Processor collects Autogun. 05903_ R-10 Processor collects Lgt. Nuclear Core. 05905_ Penetrated by Slug. 05916_ System corrupted: Matter fused (-8). 05919_ ALERT: Potential suspicious activity detected, Programmers report to Factory Zone 8L. 05935_ System corrupted: Energy discharge (-32). 05948_ Knocked back. 05953_ U-05 Engineer builds a Wall. 05954_ ALERT: Cargo convoy en route, clear transfer corridor. Map ----- +----------------------------------------------------+ | ?????????????????????????????????????????????????? | | ?????????????????????????????????????????????????? | | ?????????????????????????????????????????????????? | | ?????????????????????????????????????????????????? | | ?????????????????????????????????????????????????? | | ?????????????????????????????????????????????????? | | ?????????????????????????????????????????????????? | | ?????????????????????????????????????????????????? | | ?????????????????????????????????????????????????? | | ?????????????????????????????????????????????????? | | ?????????????????????????????????????????????????? | | ?????????????????????????????????????????????????? | | ?????????????????????????????????????????????????? | | ?????????????????????????????????????????????????? | | ?????????????????????????????????????????????????? | | ?????????????????????????????????????????????????? | | ?????????????????????????????????????????????????? | | ????????????????????????#######??????????????????? | | ???????????????????????# #??????????????????? | | ???????????????????????# """ #??????????????????? | | ???????????????????????? """ #??????????????????? | | ???????????????????????? """ ]#??????????????????? | | ????????????????????????? ???????????????????? | | ?????????????##### ?????? k ?#??????????????????? | | ?????????? ###/##/##?????????????????? | | ??????????" Y @A t #?????????????????? | | ?????????? ### +?????????????????? | | ?????????????##### ??????# #?????????????????? | | ?????????????????????????# #?????????????????? | | ?????????????????????????# R #?????????????????? | | ?????????????????????????# #?????????????????? | | ?????????????????????????# #????????? ??????? | | ?????????????????????????####R #????????? ??????? | | ????????????????????????????# #???????? ??????? | | ????????????????????????????# #??????? ???????? | | ???????????????????????????## #???####+#####????? | | ????????????????############# #### #????? | | ????????????????# ###??? | | ????????????????# ??? | | ????????????????# ?? | | ????????????????# H ?? | | ????????????? ? | | ??????????????### ? | | ????????????????# #????? | | ????????????????########## % ## #????? | | ?????????????????????????# #?####+#####????? | | ?????????????????????????# #???????????????? | | ?????????????????????????# #???????????????? | | ?????????????????????????+ #???????????????? | | ?????????????????????????# #???????????????? | +----------------------------------------------------+ Best States ------------- Heat Dissipation 40 Energy Generation 14 Energy Capacity 250 Matter Stores 300 Matter Capacity 300 Sight Range 16 Robot Scan Range 15 Terrain Scan Range 16 Terrain Scan Density 10 Armor Coverage 2400 Resistance: EM 90 Evasion (%) 50 Recoil Reduction 4 Item Schematics ----------------- None Robot Schematics ------------------ None Fabricated ------------ Nothing Repaired ---------- Mak. Axe | 36% | -8/Materials Alien Tech Used ----------------- None Achievements -------------- Watch This! Challenges ------------ None Game ------ Seed SpreadStasisMicrothruster Manual? 0 Play Time 00:43:44 Cumulative 43.8 hours Start 2025.08.09 @ 22:34:16 End 2025.08.09 @ 23:15:48 Sessions 1 Manual Loads 0 Difficulty Rogue Special Mode None Game No. 85 Rogue 82 Adventurer 3 Explorer 0 Win Type - Total 0 Types 0/0/0/0/0/0/0/0/0/0 Lore% 29 Gallery% 29 Achievement% 31 Wizard Run 0 Options --------- Layout 1 ASCII 0 Keyboard 0 Movement Mouse Keybinds 0 Fullscreen 1 Font 24/Smallcaps Map View 50x35 Zoom Use 0% Tactical HUD 1 Map Filters NONE Filters NONE Steam 1 RUN: 75866f22-1d73-43f9-923f-3b5ea0ae7e81